Cogmind - Beta 13 @@@ ROGUE MODE // 2024.04.09 @ 15:37:55 Player: Catty Watty Result: Destroyed by L-31 Rogue with Katana Performance ------------- Evolutions (1) 500 Regions Visited (2) 400 Robots Destroyed (17) 85 Value Destroyed (540) 540 Prototype IDs (0) 0 Alien Tech Used (0) 0 Bonus (0) 0 TOTAL SCORE: 1525 Bonus ------- None Cogmind --------- Core Integrity 0/400 Matter 300/300 Energy 35/100 System Corruption 0% Temperature Cool (0) Movement Core (400) Ox7 Location -9/Materials Parts ------- > --- POWER (2) -------- (None) > --- PROPULSION (2) --- (None) > --- UTILITY (3) ------ Large Storage Unit Melee Analysis Suite > --- WEAPON (2) ------- Katana > --- INVENTORY (15) --- Heat Sink High-capacity Matter Pod (200) Signal Interpreter Terrain Scanner Terrain Scan Processor Light Armor Plating Hardened Light Armor Plating Shield Generator Shield Generator Shield Generator Beam Rifle Light Assault Rifle Peak State ------------ > --- POWER ------------ Ion Engine > --- PROPULSION ------- VTOL Module > --- UTILITY ---------- Large Storage Unit Melee Analysis Suite Shield Generator > --- WEAPON ----------- Heavy Assault Rifle Katana > --- INVENTORY -------- High-capacity Matter Pod Signal Interpreter Terrain Scanner Terrain Scan Processor Light Armor Plating Hardened Light Armor Plating Shield Generator Shield Generator Shield Generator Beam Rifle Light Assault Rifle [Rating: 15] Favorites ----------- Power Ion Engine Engine Ion Engine Power Core Light Nuclear Core Propulsion Light Treads Treads Light Treads Leg Aluminum Leg Flight Unit VTOL Module Utility Small Storage Unit Device Seismic Detector Storage Small Storage Unit Processor Melee Analysis Suite Protection Propulsion Shielding Weapon Heavy Assault Rifle Energy Gun Medium Laser Ballistic Gun Heavy Assault Rifle Slashing Weapon Katana Build | -11 -10 -9 ------- Run | Yrd Mat Mat Slots Evolved 2 | . . 2 Power 1 | . . 1 Propulsion . | . . . Utility 1 | . . 1 Weapon . | . . . Parts Attached 21 | 6 4 11 Power 5 | 1 2 2 Engine 4 | 1 2 1 Core 1 | . . 1 Reactor . | . . . Propulsion 4 | 2 . 2 Treads 2 | 2 . . Leg 1 | . . 1 Wheel . | . . . Hover . | . . . Flight 1 | . . 1 Utility 6 | 1 1 4 Device 2 | . 1 1 Storage 2 | 1 . 1 Processor 1 | . . 1 Hackware . | . . . Protection 1 | . . 1 Artifact . | . . . Weapon 6 | 2 1 3 Energy Gun 3 | 2 . 1 Energy Cannon . | . . . Ballistic Gun 2 | . 1 1 Ballistic Cannon . | . . . Launcher . | . . . Special Weapon . | . . . Impact Weapon . | . . . Slashing Weapon 1 | . . 1 Piercing Weapon . | . . . Special Melee Weapon . | . . . Unidentified Prototypes . | . . . Parts Lost 10 | . 1 9 Power 2 | . . 2 Propulsion 3 | . . 3 Utility 2 | . . 2 Weapon 3 | . 1 2 Highest Loss Streak 3 | . 1 3 To Critical Strikes . | . . . Average Slot Usage (%) 85 | . 96 79 Engine 11 | . 14 10 Core 2 | . . 4 Treads 11 | . 28 3 Leg 1 | . . 2 Flight 4 | . . 7 Device 10 | . 10 10 Storage 12 | . 14 11 Processor 3 | . . 5 Protection 3 | . . 5 Energy Gun 7 | . 15 4 Ballistic Gun 11 | . 12 10 Slashing Weapon 3 | . . 4 Naked Turns . | . . . Heaviest Build 37 | 12 14 37 Greatest Support 40 | 40 40 40 Greatest Overweight (x) 12 | . . 12 Average Overweight (x) 1 | . . 4 Largest Inventory Capacity 15 | 8 8 15 Average Capacity 11 | 6 8 13 Most Carried 12 | 5 8 12 Average Carried 8 | 2 6 10 Final Capacity 15 | 8 8 15 Final Carried 12 | 2 8 12 Class Distribution -------------------- 100% | Mutant Dominant Class ---------------- Mutant | -10/Materials Mutant | -9/Materials Resources | -11 -10 -9 ----------- Run | Yrd Mat Mat Matter Collected 727 | 152 290 285 Remotely . | . . . Salvage Created 688 | . 329 359 Parts 40 | . 16 24 Haulers Intercepted 1 | . 1 . Recyclers Shooed 2 | . . 2 Parts Field Recycled . | . . . Retrieved Matter . | . . . Parts Self-Destructed . | . . . Prevented . | . . . Kills | -11 -10 -9 ------- Run | Yrd Mat Mat Combat Hostiles Destroyed 14 | . 7 7 Guns 14 | . 7 7 Classes Destroyed 6 | . 4 2 Hauler 1 | . 1 . Watcher 2 | . 1 1 Swarmer 2 | . 2 . Grunt 9 | . 5 4 Duelist 1 | . . 1 Sentry 2 | . . 2 Best Kill Streak 3 | . 2 3 Combat Bots Only 3 | . 2 3 Max Kills in Single Turn 2 | . 2 1 Gunslinging . | . . . Exploded . | . . . Melee . | . . . Uniques/NPCs Destroyed . | . . . Combat | -11 -10 -9 -------- Run | Yrd Mat Mat Hostile Shots Fired 152 | . 68 84 Missed 28 | . 19 9 Damage Taken 1553 | . 483 1070 Core 563 | . 141 422 Absorbed by Shields 95 | . . 95 Redirected to Shielding 51 | . . 51 Core Remaining (%) 71 | 100 43 . Volleys Fired 76 | . 33 43 Largest 2 | . 2 2 Hottest 90 | . 90 79 Shots Fired 128 | . 63 65 Gun 128 | . 63 65 Cannon . | . . . Launcher . | . . . Special . | . . . Kinetic 69 | . 26 43 Thermal 54 | . 32 22 Explosive . | . . . Electromagnetic 5 | . 5 . Robot Hit Streak 11 | . 8 11 Robot Miss Streak 5 | . 5 3 Penetration Max . | . . . Secondary Targets 2 | . 1 1 Max Gunslinging Chain 1 | . 1 1 Shots Hit Robots 88 | . 37 51 Core Hits 32 | . 16 16 Critical Kills . | . . . Critical Parts Destroyed . | . . . Critical Strikes 2 | . 1 1 Burn 1 | . 1 . Sever 1 | . . 1 Melee Attacks 9 | . . 9 Impact . | . . . Slashing 9 | . . 9 Piercing . | . . . Sneak Attacks 2 | . . 2 Combat Hostiles . | . . . Follow-up Attacks . | . . . Damage Inflicted 1307 | . 394 913 Guns 1054 | . 394 660 Cannons . | . . . Explosions . | . . . Melee 253 | . . 253 Ramming . | . . . Kinetic 606 | . 132 474 Thermal 448 | . 262 186 Explosive . | . . . Electromagnetic . | . . . Impact . | . . . Slashing 253 | . . 253 Piercing . | . . . Highest Corruption . | . . . Average Corruption . | . . . Corruption Purged . | . . . Corruption Blocked . | . . . Overload Shots . | . . . Overflow Damage 56 | . . 56 Projectiles . | . . . Explosions . | . . . Melee 56 | . . 56 Knockbacks . | . . . Impact . | . . . Kinetic . | . . . Secondary . | . . . Self-Inflicted Damage . | . . . Shots . | . . . Rammed . | . . . Targets Rammed . | . . . Kicked . | . . . Crushed . | . . . Highest Temperature 370 | . 213 370 Average Temperature 82 | . 70 95 Received Heat Transfer 476 | . 135 341 Effects 1 | . . 1 Shutdowns 1 | . . 1 Siege Activations . | . . . Robots Corrupted . | . . . Combat Hostiles . | . . . Parts Fried . | . . . Impact Corruptions . | . . . Robots Melted . | . . . Combat Hostiles . | . . . Parts Melted . | . . . Heat Transferred 1369 | . 851 518 Parts Sabotaged . | . . . Parts Stolen . | . . . Parts Stripped . | . . . Power Chain Reactions . | . . . Alert | -11 -10 -9 ------- Run | Yrd Mat Mat Peak Influence 137 | . 137 135 Initial 38 | . . 38 Average 56 | . 70 52 Maximum Alert Level . | . . . Low Security (%) 100 | 100 100 100 Level 1 . | . . . Level 2 . | . . . Level 3 . | . . . Level 4 . | . . . Level 5 . | . . . High Security . | . . . Max Security . | . . . Squads Dispatched 2 | . 1 1 Investigation 1 | . 1 . Extermination . | . . . Reinforcement 1 | . . 1 Assault . | . . . Garrison . | . . . Intercept . | . . . Searches Triggered . | . . . Construction Impeded . | . . . Haulers Reinforced . | . . . Active Scanning Responses . | . . . Cargo Convoy Interrupts . | . . . Stealth | -11 -10 -9 --------- Run | Yrd Mat Mat Distress Signals . | . . . Communications Jammed . | . . . Distress Signals . | . . . Times Spotted 25 | . 11 14 Peak Tracking Total 3 | . 3 3 Tactical Retreats 3 | . 2 1 Traps | -11 -10 -9 ------- Run | Yrd Mat Mat Traps Triggered 2 | . 1 1 Indirectly . | . . . Trap Hack Attempts . | . . . Triggered . | . . . Disarmed . | . . . Reprogrammed . | . . . Reused . | . . . Traps Extracted . | . . . Installed . | . . . Triggered . | . . . Machines | -11 -10 -9 ---------- Run | Yrd Mat Mat Machines Disabled 3 | . . 3 Max in Single Turn 1 | . . 1 Machines Repaired . | . . . Machines Dismantled . | . . . Machines Sabotaged . | . . . Overloaded Fab Kills . | . . . Hacking | -11 -10 -9 --------- Run | Yrd Mat Mat Machines Accessed 2 | . 2 . Terminals 1 | . 1 . Fabricators . | . . . Repair Stations . | . . . Recycling Units 1 | . 1 . Scanalyzers . | . . . Garrison Access . | . . . Total Hacks 5 | . 5 . Successful 3 | . 3 . Failed 2 | . 2 . Catastrophic . | . . . Database Lockouts . | . . . Manual . | . . . Terminals 2 | . 2 . Fabricators . | . . . Repair Stations . | . . . Recycling Units 3 | . 3 . Scanalyzers . | . . . Garrison Access . | . . . Terminal Hacks 1 | . 1 . Transport Status 1 | . 1 . Fabricator Hacks . | . . . Repair Station Hacks . | . . . Recycling Unit Hacks 2 | . 2 . Report Inventory 1 | . 1 . Retrieve Components 1 | . 1 . Scanalyzer . | . . . Garrison Access Hacks . | . . . Unauthorized Hacks . | . . . Terminals . | . . . Fabricators . | . . . Repair Stations . | . . . Recycling Units . | . . . Scanalyzers . | . . . Garrison Access . | . . . Data Cores Recovered . | . . . Used . | . . . Hacking Detections 1 | . 1 . Full Trace Events . | . . . Feedback Events . | . . . Feedback Blocked . | . . . Robot Schematics Acquired . | . . . Robots Built . | . . . Authchips . | . . . Time . | . . . Total Robot Build Rating . | . . . Part Schematics Acquired . | . . . Parts Built . | . . . Authchips . | . . . Time . | . . . Total Part Build Rating . | . . . Parts Repaired . | . . . Time . | . . . Parts Recycled . | . . . Recycled Matter . | . . . Retrieved Matter . | . . . Retrieved Components 2 | . 2 . Parts Scanalyzed . | . . . Part Schematics Acquired . | . . . Parts Damaged . | . . . Bothacking | -11 -10 -9 ------------ Run | Yrd Mat Mat Used RIF Installer . | . . . Robots Hacked . | . . . Non-combat . | . . . Combat . | . . . Robot Hacks Applied . | . . . Relay Couplers Released . | . . . Fabnet Peak Effective % . | . . . Robots Rewired . | . . . Allies Hacked . | . . . Hacks Repelled . | . . . Allies | -11 -10 -9 -------- Run | Yrd Mat Mat Total Allies . | . . . Largest Group . | . . . Highest-Rated Group . | . . . Highest-Rated Ally . | . . . Total Orders . | . . . Ally Attacks . | . . . Total Damage . | . . . Kills . | . . . Allies Corrupted . | . . . Allies Melted . | . . . Intel | -11 -10 -9 ------- Run | Yrd Mat Mat Robot Analysis Total . | . . . Derelict Logs Recovered . | . . . Drone Launches . | . . . Drone Recoveries . | . . . Exploration | -11 -10 -9 ------------- Run | Yrd Mat Mat Turns Passed 1807 | 75 580 1152 Spaces Moved 599 | 48 299 252 Core 33 | 12 . 21 Treads 437 | 36 299 102 Legs 20 | . . 20 Wheels . | . . . Hover . | . . . Flight 109 | . . 109 Fastest Speed 50 | 50 160 160 Average Speed 256 | 132 160 394 Slowest Speed 685 | 160 160 685 Overloaded Moves . | . . . Propulsion Burnouts . | . . . Robots Hopped . | . . . Cave-ins Triggered . | . . . Exploration Rate (%) 20 | 5 39 17 Regions Visited 2 Branch Regions . Pre-discovered Areas . | . . . Known Exits Taken . | . . . Unknown Exits Taken 2 | 1 1 . Scrap Searched . | . . . Spaces Dug . | . . . Terrain Destroyed . | . . . Melee . | . . . Projectile . | . . . AOE . | . . . Terrain Rammed . | . . . Walls Destroyed . | . . . Machines Disabled . | . . . Actions | -11 -10 -9 --------- Run | Yrd Mat Mat Total 733 | 59 342 332 Wait . | . . . Move 597 | 47 298 252 Hop . | . . . Pick Up 27 | 6 6 15 Fast Attach 4 | 2 1 1 Attach 14 | 4 1 9 Detach 1 | . . 1 Swap 3 | . 2 1 Drop 2 | . 1 1 Fire 76 | . 33 43 Melee 9 | . . 9 Ram . | . . . Kick . | . . . Crush . | . . . Escape Stasis . | . . . Rewire . | . . . Trap . | . . . Miscellaneous . | . . . Route ------- -11/Scrapyard -10/Materials -9/Materials History --------- Turn | Location | Event 8 | -11/Scrapyard | Discovered new exit (range 16) 76 | -11/Scrapyard | Entered Materials 316 | -10/Materials | Build established: Mutant 465 | -10/Materials | Discovered new exit (range 10) 552 | -10/Materials | Core integrity fell below 50% 656 | -10/Materials | Entered another Materials area 656 | -9/Materials | Evolved 2 slots: Power x1, Utility x1 1797 | -9/Materials | Core integrity fell below 50% 1802 | -9/Materials | Core integrity fell below 20% 1808 | -9/Materials | Destroyed by L-31 Rogue with Katana Last Messages --------------- R-06 Scavenger collects Imp. Aluminum Leg. R-06 Scavenger collects Aluminum Leg. R-06 Scavenger collects Sml. Laser. K-01 Serf collects debris. Destroyed Datajack. Sneak attack on M-13 Machinist. Destroyed Lgt. Ion Engine. Destroyed Wheel. Sneak attack on U-05 Engineer. Destroyed Wheel. U-05 Engineer destroyed. K-01 Serf collects debris. R-06 Scavenger collects Terrain Scanner. Ion Engine destroyed. R-06 Scavenger collects Structural Scanner. Hvy. Assault Rifle destroyed. VTOL Module destroyed. Shield Generator severed. R-06 Scavenger collects Shield Generator. L-31 Rogue Imp. Aluminum Leg severed. Map ----- +----------------------------------------------------+ | ?????????????????????????????????????????????????? | | ?????????????????????????????????????????????????? | | ?????????????????????????????????????????????????? | | ?????????????????????????????????????????????????? | | ?????????????????????????????????????????????????? | | ?????????????????????????????????????????????????? | | ?????????????????????????????????????????????????? | | ?????????????????????????????????????????????????? | | ?????????????????????????????????????????????????? | | ?????????????????????????????????????????????????? | | ?????????????????????????????????????????????????? | | ?????????????????????????????????????????????????? | | ?????????????????????????????????????????????????? | | ?????????????????????????????????????????????????? | | ?????????????????????????????????????????????????? | | ?????????????????????????????????????????????????? | | ?????????????????????????????????????????????????? | | ?????????????????????????????????????????????????? | | ?????????????????????????????????????????????????? | | ?????????????????????????????????????????????????? | | ?????????????????????????????????????????????????? | | ???????????????# ????????????????????????????????? | | ???????????????# ???????????????????????????????? | | ???????????????# ###################+#?????????? | | ??????????"" ## a u ????????? | | ??????????"" /r @r g % #????????? | | ???????????????# l #????????? | | ???????????????##k###### g##+########???????????? | | ???????????????????????# r #?????????????????????? | | ???????????????????????# #?????????????????????? | | ???????????????????????#k #?????????????????????? | | ???????????????????????# #?????????????????????? | | ???????????????????????# #?????????????????????? | | ???????????????????????# #?????????????????????? | | ???????????????????????# #?????????????????????? | | ???????????????????????# #?????????????????????? | | ???????????????????????# #?????????????????????? | | ??????????###??????????# #?????????????????????? | | ????####### ##?????????# #?????????????????????? | | ????# #?????????#m #?????????????????????? | | ????# ! """ ########### ########??????????????? | | ????# """ # % # ## #??????????????? | | ????# "" + # # #??????????????? | | ????# # "" # # #??????????????? | | ????# # "" "" # # #??????????????? | | ????# # """" # # #??????????????? | | ????# #% """" # # #??????????????? | | ????# # """ + + #??????????????? | | ???######+#### # # #??????????????? | | ??##! ############ # #??????????????? | +----------------------------------------------------+ Best States ------------- Heat Dissipation 28 Energy Generation 19 Energy Capacity 310 Matter Stores 300 Matter Capacity 300 Sight Range 16 Terrain Scan Density 10 Propulsion Shielding 33 Evasion (%) 50 Melee Accuracy 5 Recoil Reduction 2 Item Schematics ----------------- None Robot Schematics ------------------ None Fabricated ------------ Nothing Alien Tech Used ----------------- None Achievements -------------- None Challenges ------------ None Game ------ Seed SeismicGhostLink Manual? 0 Play Time 00:14:02 Cumulative 1.8 hours Start 2024.04.09 @ 15:25:41 End 2024.04.09 @ 15:37:55 Sessions 1 Manual Loads 0 Difficulty Rogue Special Mode None Game No. 6 Rogue 6 Adventurer 0 Explorer 0 Win Type - Total 0 Types 0/0/0/0/0/0/0/0/0 Lore% 1 Gallery% 6 Achievement% 7 Wizard Run 0 Options --------- Layout 1 ASCII 0 Keyboard 0 Movement Arrows Keybinds 0 Fullscreen 1 Font 24/Smallcaps Map View 50x35 Zoom Use 0% Tactical HUD 0 Map Filters NONE Filters NONE Steam 1 RUN: 91759910-84db-468d-904e-e9be5bb57bc6